Workbook

Sheet 세입세출예산서
A2: 2022년도
A3: 세입 • 세출 예산서
B4: (본예산)
A6: 학교법인동화학원

Sheet 기구 및 정현원표(동화고)
A1: 【서식 7】
A2: 기구 및 정·현원 일람표
A3: [ 작성기준 : 예산 - 3.1. 결산 - 2.28. ]
A5: 1. 일반 현황
A7: 법인설립 인 가 년 월 일 | B7: 이사장 인적사항 | P7: 전화번호
B8: 성명 (한자) | F8: 생년월일 | H8: 학력 | J8: 경럭 | P8: 법인 사무실 | R8: 이사장 자택
A9: 1950.6.5 | B9: 유 동 욱 (劉 東 旭) | F9: 1953.4.15 | H9: 중앙대학교 | J9: 유피부과의원장
A10: ※ 작성요령 : 관외법인도 작성하며 지역교육청에서는 법인별 제출 할 것.
A12: 2. 법인 정. 현원 현황 | S12: (단위 : 명)
A13: 구분 | B13: 사 무 직 | Q13: 기능직 | S13: 계
B14: 4급 | F14: 5급 | I14: 6급 | L14: 8급 | O14: 소계
A15: 정원 | B15: 1 | F15: 1 | I15: 0 | L15: 1 | O15: =SUM(B15:N15) -> 3 | Q15: 0 | S15: =O15+Q15 -> 3
A16: 현원 | B16: 0 | F16: 0 | I16: 0 | L16: 0 | O16: =SUM(B16:N16) -> 0 | Q16: 0 | S16: =O16+Q16 -> 0
A17: 증감 | B17: 0 | F17: 0 | I17: 0 | L17: 0 | O17: =O15-O16 -> 3 | Q17: =Q15-Q16 -> 0 | S17: =S15-S16 -> 3
A18: ※ 작성요령 : 관내법인만 작성.
A20: 3. 학교 교직원 정.현원 현황 | S20: (단위 : 명)
A21: 구분 | B21: 정규교원 | G21: 기간제교원 | J21: 일반직 | S21: 합계
J22: 행정 | M22: 관리운영 | P22: 기술
B23: 교장 | C23: 교감 | D23: 보직교사 | E23: 교사 | F23: 소계 | G23: 결원 보충 | H23: 기타 | I23: 소계 | J23: 5급 | K23: 6급 | L23: 7급 | M23: 8급 | N23: 9급 | P23: 8급 | Q23: 9급 | R23: 소계
A24: 정원 | B24: 1 | C24: 2 | D24: 12 | E24: 78 | F24: =SUM(B24:E24) -> 93 | G24: 0 | H24: 0 | I24: =SUM(G24:H24) -> 0 | J24: 1 | K24: 1 | L24: 1 | M24: 1 | N24: 1 | P24: 1 | Q24: 1 | R24: =SUM(J24:Q24) -> 7 | S24: =F24+O24+R24+I24 -> 100
A25: 현원 | B25: 1 | C25: 1 | D25: 12 | E25: 60 | F25: =SUM(B25:E25) -> 74 | G25: 19 | I25: =SUM(G25:H25) -> 19 | J25: 1 | K25: 0 | L25: 1 | M25: 0 | N25: 2 | P25: 2 | Q25: 0 | R25: =SUM(J25:Q25) -> 6 | S25: =F25+O25+R25+I25 -> 99
A26: 증감 | B26: =B24-B25 -> 0 | E26: 18 | F26: 19 | G26: -19 | H26: 0 | I26: -19 | J26: 0 | K26: 1 | L26: 0 | M26: 1 | N26: -1 | O26: 0 | P26: -1 | Q26: 1 | R26: 1 | S26: 1
A27: ※ 정원은 관할청에서 인정한 인원을 기재하고 현원은 현재 근무중인자(휴직자 포함, 기간제교사와 시간강사는 제외)를 작성한다.
A29: 4. 교육공무직원 현황 | S29: (단위 : 명)
A30: 구분 | B30: 교육공무직원
B31: 행정실무사 | F31: 영양사 | H31: 조리사 | J31: 조리실무사 | S31: 계
A32: 정원 | B32: 4 | F32: 0 | H32: 1 | J32: 16 | K32: 0 | L32: 0 | N32: 0 | P32: 0 | R32: 0 | S32: =SUM(B32:R32) -> 21
A33: 현원 | B33: 4 | F33: 0 | H33: 1 | J33: 16 | K33: 0 | L33: 0 | N33: 0 | P33: 0 | R33: 0 | S33: =SUM(B33:R33) -> 21
A34: 증감 | B34: 0 | F34: 0 | H34: 0 | J34: =J32-J33 -> 0 | K34: 0 | L34: =M32-M33 -> 0 | N34: 0 | P34: 0 | R34: =R32-R33 -> 0 | S34: =S32-S33 -> 0
A35: ※ 직종에 따라 변경 작성

Sheet 기구 및 정현원(동화중)
A1: 【서식 7】
A2: 기구 및 정·현원 일람표
A3: [ 작성기준 : 예산 - 3.1. 결산 - 2.28. ]
A5: 1. 일반 현황
A7: 법인설립 인 가 년 월 일 | B7: 설립자 (한자) | D7: 이사장 인적사항 | P7: 전화번호
D8: 성명 (한자) | F8: 생년월일 | H8: 학력 | J8: 경럭 | P8: 법인 사무실 | R8: 이사장댁
A9: 1950.6.5 | B9: 유 경 화 (劉 景 華) | D9: 유 동 욱 (劉 東 旭) | F9: 1953.4.15 | H9: 중앙대학교 | J9: 유피부과의원장
A10: ※ 작성요령 : 관외법인도 작성하며 지역교육청에서는 법인별 제출 할 것.
A12: 2. 법인 정. 현원 현황 | S12: (단위 : 명)
A13: 구분 | B13: 사무직 | Q13: 기능직 | S13: 계
B14: 4급 | D14: 5급 | F14: 6급 | I14: 8급 | L14: 9급 | O14: 소계
A15: 정원 | B15: 1 | D15: 1 | F15: 0 | I15: 1 | L15: 0 | O15: =SUM(B15:N15) -> 3 | Q15: 0 | S15: =O15+Q15 -> 3
A16: 현원 | B16: 0 | D16: 0 | F16: 0 | I16: 0 | L16: 0 | O16: =SUM(B16:N16) -> 0 | Q16: 0 | S16: =O16+Q16 -> 0
A17: 증감 | B17: =B15-B16 -> 1 | D17: =D15-D16 -> 1 | F17: 1 | I17: 1 | L17: 0 | O17: =O15-O16 -> 3 | Q17: =Q15-Q16 -> 0 | S17: =S15-S16 -> 3
A18: ※ 작성요령 : 관내법인만 작성.
A20: 3. 학교 교직원 정.현원 현황 | S20: (단위 : 명)
A21: 구분 | B21: 정규교원 | G21: 기간제교원 | J21: 일반직 | S21: 합계
J22: 행정 | M22: 관리운영 | P22: 기술
B23: 교장 | C23: 교감 | D23: 보직 교사 | E23: 교사 | F23: 소계 | G23: 결원 보충 | H23: 기타 | I23: 소계 | J23: 5급 | K23: 6급 | L23: 7급 | M23: 8급 | N23: 9급 | P23: 8등급 | Q23: 9등급 | R23: 소계
A24: 정원 | B24: 1 | C24: 1 | D24: 10 | E24: 27 | F24: =SUM(B24:E24) -> 39 | G24: 0 | H24: 0 | I24: =SUM(G24:H24) -> 0 | J24: 0 | K24: 1 | L24: 1 | M24: 0 | N24: 1 | P24: 1 | Q24: 1 | R24: =SUM(J24:Q24) -> 5 | S24: =F24+O24+R24+I24 -> 44
A25: 현원 | B25: 1 | C25: 1 | D25: 10 | E25: 15 | F25: =SUM(B25:E25) -> 27 | G25: 12 | H25: 0 | I25: =SUM(G25:H25) -> 12 | J25: 0 | K25: 1 | L25: 0 | M25: 1 | N25: 0 | P25: 0 | Q25: 2 | R25: =SUM(J25:Q25) -> 4 | S25: =F25+O25+R25+I25 -> 43
A26: 증감 | B26: =B24-B25 -> 0 | C26: =C24-C25 -> 0 | D26: 0 | E26: 12 | F26: 12 | G26: -12 | H26: 0 | I26: -12 | J26: 0 | K26: 0 | L26: 1 | M26: -1 | N26: 1 | O26: 0 | P26: 1 | Q26: -1 | R26: 1 | S26: 1
A27: ※ 정원은 관할청에서 인정한 인원을 기재하고 현원은 현재 근무중인자(휴직자 포함, 기간제교사와 시간강사는 제외)를 작성한다.
A29: 4. 교육공무직원 현황 | S29: (단위 : 명)
A30: 구분 | B30: 비정규직
B31: 행정실무사 | D31: 영양사 | F31: 사서 | S31: 계
A32: 정원 | B32: 3 | D32: 0 | F32: 0 | H32: 0 | J32: 0 | K32: 0 | L32: 0 | N32: 0 | P32: 0 | R32: 0 | S32: =SUM(B32:R32) -> 3
A33: 현원 | B33: 3 | D33: 0 | F33: 0 | H33: 0 | J33: 0 | K33: 0 | L33: 0 | N33: 0 | P33: 0 | R33: 0 | S33: =SUM(B33:R33) -> 3
A34: 증감 | B34: 0 | D34: 0 | F34: 0 | H34: 0 | J34: =J32-J33 -> 0 | K34: 0 | L34: =M32-M33 -> 0 | N34: 0 | P34: 0 | R34: =R32-R33 -> 0 | S34: =S32-S33 -> 0
A35: ※ 직종에 따라 변경 작성

Sheet 예산총칙
A1: 예 산 총 칙
A3: 제1조 2022학년도 동화학원 법인비 세입ㆍ세출 예산 총액은 세입ㆍ세출 각
A4: 각 212,788,000원으로 한다.
A6: 제2조 사학기관 재무회계 규칙 제21조 제3항의 규정에 불구하고 다음 비목
A7: 의 예산은 타 비목에 전용할 수 없다.
B11: 1. 봉 급
B12: 2. 시 설 비
B13: 3. 공 공 요 금
B14: 4. 보 상 금
B15: 5. 상 환 금

Sheet 예산총괄표
A1: 법인회계 예산 총괄표
A3: 1. 세 입
F4: (단위:천원)
A5: 과별 | B5: 예산액 | C5: 구성비(%) | D5: 전년도 예산액 | E5: 비교증감 | F5: 비고
A6: 1. 재산수입 | B6: 97,753 | C6: =(B6/$B$14)*100 -> 45.9 | D6: 67,249 | E6: =SUM(B6-D6) -> 30,504
A7: 2. 사업수입 | C7: 0.0
A8: 3. 투자사업 | C8: 0.0
A9: 4. 과년도수입 | B9: 0 | C9: 0.0 | D9: 0 | E9: =SUM(B9-D9) -> 0
A10: 5. 이월금 | B10: 114,300 | C10: 53.7 | D10: 100,200 | E10: =SUM(B10-D10) -> 14,100
A11: 6. 기부원조금 | B11: 0 | C11: 0.0 | D11: 0 | E11: =SUM(B11-D11) -> 0
A12: 7. 차입금 | B12: 0 | C12: 0.0 | D12: 0 | E12: =SUM(B12-D12) -> 0
A13: 8. 잡수입 | B13: 735 | C13: 0.3 | D13: 1,108 | E13: =SUM(B13-D13) -> -373
A14: 세입합계 | B14: =SUM(B6:B13) -> 212,788 | C14: =SUM(C6:C13) -> 100 | D14: =SUM(D6:D13) -> 168,557 | E14: =SUM(E6:E13) -> 44,231
A17: 1. 세 출
F18: (단위:천원)
A19: 과별 | B19: 예산액 | C19: 구성비(%) | D19: 전년도 예산액 | E19: 비교증감 | F19: 비고
A20: 이사회비 | B20: 1,600 | C20: =SUM(B20/$B$26)*100 -> 0.8 | D20: 0 | E20: =SUM(B20-D20) -> 1,600
A21: 사무비 | B21: 4,900 | C21: =SUM(B21/$B$26)*100 -> 2.3 | D21: 8,219 | E21: -3,319
A22: 재산조성비 | B22: 38,000 | C22: 17.9 | D22: 35,702 | E22: 2,298
A23: 전출금 | B23: 68,288 | C23: 32.1 | D23: 91,080 | E23: -22,792
A24: 잡지출 | B24: 0 | C24: 0.0 | D24: 2,860 | E24: -2,860
A25: 예비비 | B25: 100,000 | C25: 47.0 | D25: 100,000 | E25: 0
A26: 세출합계 | B26: =SUM(B20:B25) -> 212,788 | C26: 100.0 | D26: =SUM(D20:D25) -> 237,861 | E26: =SUM(E20:E25) -> -25,073

Sheet 세입예산서
A1: 세입예산서
A2: (단위 : 천원)
B3: 과 목 | E3: 예산액 | F3: 전년도예산액 | G3: 비교증△감 | H3: 산 출 기 초(단위:원) | J3: 과목해소 및 유의사항
B4: 관 | C4: 항 | D4: 목
B5: 1.재산수입 | E5: =E6 -> 97,753 | F5: =F6 -> 67,249 | G5: =G6 -> 30,504
C6: 1.기본재산수입 | E6: =E7 -> 97,753 | F6: =F7 -> 67,249 | G6: =E6-F6 -> 30,504
D7: 1.기본재산수입 | E7: 97,753 | F7: 67,249 | G7: =E7-F7 -> 30,504 | H7: 토지임대료 | I7: 9,300,000 | J7: 토지(대지,전,답,임야 및 잡종지)의 임대수입
H8: 건물임대수입 | I8: 87,780,000 | J8: 건물임대수입
H9: 정기예금이자 | I9: 467,300 | J9: 정기예금이자는 2016년도 선급법인세, 2015년도에 납부한 법인세환급금을 구분하여 기재하고 2014년도 선급법인세 납부 증빙서 (금융기관별 금융소득원천징수명세서)를 반드시 첨부
H10: 법인세환급금(전년도) | I10: 184,100
H11: 지방세환급금(전년도) | I11: 21,600
B13: 5.이월금 | E13: =E14 -> 114,300 | F13: =F14 -> 100,200 | G13: =E13-F13 -> 14,100
C14: 1.전년도이월금 | E14: =E15+E16 -> 114,300 | F14: =F15+F16 -> 100,200 | G14: 14,100
D15: 1.전년도잉여금 | E15: 14,300 | F15: 200 | G15: 14,100 | H15: 전년도 불용액 중 이월사업비, 임대보증금미환급금을 제외한 금액 | I15: 14,300,000
D16: 3.임대보증금미환급금 | E16: 100,000 | F16: 100,000 | G16: 0 | H16: 전년도 임대보증금 미환급에 따른 이월금 | I16: 100,000,000
B17: 6.기부원조금 | E17: =E18 -> 0 | F17: =F18 -> 0 | G17: 0
C18: 1.기부원조금 | E18: =E19 -> 0 | F18: =F19 -> 0 | G18: 0
D19: 1.기부원조금 | E19: 0 | F19: 0 | G19: 0 | J19: 기부금은 집행용도를 구체적으로 작성하고, 세출예산서에 구체적으로 표기
B20: 7.차입금 | E20: =+E21 -> 0 | F20: =+F21 -> 0 | G20: =E20-F20 -> 0
C21: 1.차입금 | E21: =E22 -> 0 | F21: =F22 -> 0 | G21: 0
D22: 1.임대보증금수입 | E22: 0 | F22: 0 | G22: 0 | J22: ※ 당해년도에 임대계약 만료로 임차인이 변경될 경우 임대보증금의 세입세출이 있으면 반드시 법인회계계좌로 세입세출처리하고, 예산서에도 세입세출을 표기하여야 함.
B23: 8.잡수입 | E23: =E24+E28 -> 735 | F23: =F24+F28 -> 1,108 | G23: △373
C24: 1.잡수입 | E24: =E25 -> 715 | F24: =F25 -> 1,089 | G24: △374
D25: 1.잡수입 | E25: 715 | F25: 1,089 | G25: △374 | H25: 교비회계 법인세 환급금 | I25: 714,370
C28: 2.예금이자 | E28: =E29 -> 20 | F28: =F29 -> 19 | G28: =E28-F28 -> 1
D29: 1.예금이자 | E29: 20 | F29: 19 | G29: =E29-F29 -> 1 | H29: 법인회계 보통예금이자 | I29: 17,000
H30: 법인회계 법인세환급금 | I30: 3,000
B31: 세 입 합 계 | E31: =E5+E13+E17+E20+E23 -> 212,788 | F31: =F5+F13+F17+F20+F23 -> 168,557 | G31: =E31-F31 -> 44,231

Sheet 세출예산서
A1: 세출예산서
A2: (단위 : 천원)
B3: 과 목 | E3: 예산액 | F3: 전년도예산액 | G3: 비교증△감 | H3: 산 출 기 초(단위:원) | J3: 과목해소 및 유의사항
B4: 관 | C4: 항 | D4: 목
B5: 1.이사회비 | E5: =E6 -> 1,600 | F5: =F6 -> 800 | G5: =E5-F5 -> 800
C6: 1.이사회비 | E6: =E7 -> 1,600 | F6: =F7 -> 800 | G6: 800
D7: 1.이사회운영비 | E7: 1,600 | F7: 800 | G7: 800 | J7: 임원수당 : 위원회참석 수당 등 실비변상
J8: 임원수당 : 위원회참석 수당 등 실비변상
B9: 2.사무비 | E9: =+E10 -> 4,900 | F9: =+F10 -> 6,243 | G9: △1,343
C10: 2.수용비 | E10: =E11 -> 4,900 | F10: =F11 -> 6,243 | G10: △1,343
D11: 1.법인운영비 | E11: 4,900 | F11: 6,243 | G11: △1,343 | H11: 법인 세무비용 | I11: 3,300,000 | J11: 공공요금 : 우편․전신․전화․전기․수도요금 등
H12: 법인차량 유지비 43,000원*10월= | I12: 430,000 | J12: 연료비 : 난방용 연료와 그 부대경비(공고 및 운반비를 포함한다)
H13: 경조사비 45,000원*10월= | I13: 450,000
H14: 보험료 | I14: 720,000 | J14: 차량비 : 차량의 세금․수수료․수리․유류․부속품대, 보험료
B17: 3.재산조성비 | E17: =E18+E21 -> 38,000 | F17: =F18+F21 -> 33,056 | G17: =E17-F17 -> 4,944
C18: 1.시설비 | E18: =+E19+E20 -> 0 | F18: =+F19+F20 -> 0 | G18: 0
D19: 2.시설비 | E19: 0 | F19: 0 | G19: 0 | J19: 건물의 신, 증축비 및 부대경비(공고료 포함) ※ 비품이나 고정시설물도 건축공사와 일괄 시공시는 시설비에 편성
D20: 3.적립금 | E20: 0 | F20: 0 | G20: 0 | J20: 노후교실의 개축,증축 등을 위한 적립금을 집행할 경우 ※ 적립금은 관할청의 신고수리를 득한 경우 가능
C21: 2.재산관리비 | E21: =E22+E23 -> 38,000 | F21: =F22+F23 -> 33,056 | G21: 4,944
D22: 1.재산유지비 | E22: 0 | F22: 0 | G22: 0 | J22: 수익용재산(건물) 유지관리, 보수비 등
D23: 2.공과보험료 | E23: 38,000 | F23: 33,056 | G23: 4,944 | H23: 재산세 | I23: 28,800,000 | J23: 화재보험료 및 기타 공과금, 각종 세금
H24: 부가가치세 | I24: 8,940,000 | J24: ※ 법인세(주민세), 국공유지 사용료, 각종부담금, 적십자회비 등
H25: 화재보험료 | I25: 190,000 | J25: ※ 법인세(주민세), 국공유지 사용료, 각종부담금, 적십자회비 등
H26: 지역자원시설세 | I26: 70,000 | J26: ※ 법인세(주민세), 국공유지 사용료, 각종부담금, 적십자회비 등
B28: 4.전출금 | E28: =E29 -> 68,288 | F28: =F29 -> 25,598 | G28: =E28-F28 -> 42,690
C29: 1.전출금 | E29: =E30+E32 -> 68,288 | F29: =F30+F32 -> 25,598 | G29: =E29-F29 -> 42,690 | J29: 법정부담금 전출금, 법인지정사업비 전출금
D30: 1.고등학교법인전출금 | E30: 34,144 | F30: 12,799 | G30: =E30-F30 -> 21,345 | H30: 건강보험부담금 | I30: =SUM((E30*1000)-I31) -> 33,531,580 | J30: ※ 반드시 학교급별로 구분하여 작성하고, 세부항목별로 작성
H31: 법인세환급금 | I31: 612,420
D32: 2.중학교법인전출금 | E32: 34,144 | F32: 12,799 | G32: =E32-F32 -> 21,345 | H32: 건강보험부담금 | I32: =SUM((E32*1000)-I33) -> 34,042,050
H33: 법인세환급금 | I33: 101,950
B34: 9.잡지출 | E34: =E35 -> 0 | F34: =F35 -> 2,860 | G34: =G35 -> -2,860
C35: 1.제지출 | E35: =SUM(E36:E36) -> 0 | F35: =SUM(F36:F36) -> 2,860 | G35: =E35-F35 -> △2,860
D36: 4.기타제지출 | E36: 0 | F36: 2,860 | G36: △2,860 | J36: 법인협의회
B37: 10.예비비 | E37: =E38 -> 100,000 | F37: =F38 -> 100,000 | G37: 0
C38: 1.예비비 | E38: =E39 -> 100,000 | F38: =F39 -> 100,000 | G38: 0
D39: 1.임대보증금미환급금 | E39: 100,000 | F39: 100,000 | G39: 0 | H39: 임대보증금 미환급금 | I39: 100,000,000
B40: 세 출 합 계 | E40: =E5+E9+E17+E28+E34+E37 -> 212,788 | F40: =F5+F9+F17+F28+F34+F37 -> 168,557 | G40: 44,231

Sheet 성질별 조서
A1: 법인회계 예산 성질별조서
E4: (단위:천원)
A5: 구분 | C5: 예산 성질별 내역
A6: 관명 | B6: 과목명 | C6: 예산액 | D6: 관내구성비 | E6: 전체구성비
A7: 이사회비 | B7: 이사회운영비 | C7: 1,600 | D7: 100.0 | E7: =(C7/$C$22)*100 -> 0.8
B8: 소계 | C8: =SUM(C7) -> 1,600 | D8: 100.0 | E8: 0.8
A9: 사무비 | B9: 법인 운영비 | C9: 4,900 | D9: 100.0 | E9: 2.3
B10: 소계 | C10: =SUM(C9) -> 4,900 | D10: 100.0 | E10: 2.3
A11: 재산조성비 | B11: 시설비 | C11: 0 | D11: =SUM(C11/$C$14)*100 -> 0.0 | E11: 0.0
B12: 재산유지비 | C12: 0 | D12: =SUM(C12/$C$14)*100 -> 0.0 | E12: 0.0
B13: 공과보험료 | C13: 38,000 | D13: =SUM(C13/$C$14)*100 -> 100.0 | E13: 17.9
B14: 소계 | C14: =SUM(C11:C13) -> 38,000 | D14: =SUM(C14/$C$14)*100 -> 100.0 | E14: 17.9
A15: 전출금 | B15: 고등학교법인전출금 | C15: 34,144 | D15: =SUM(C15/$C$17)*100 -> 50.0 | E15: 16.0
B16: 중학교법인전출금 | C16: 34,144 | D16: =SUM(C16/$C$17)*100 -> 50.0 | E16: 16.0
B17: 소계 | C17: =SUM(C15:C16) -> 68,288 | D17: =SUM(C17/$C$17)*100 -> 100.0 | E17: =(C17/$C$22)*100 -> 32.1
A18: 잡지출 | B18: 기타 잡지출 | C18: 0 | D18: 100.0 | E18: 0.0
B19: 소계 | C19: =SUM(C18) -> 0 | D19: 100.0 | E19: 0.0
A20: 예비비 | B20: 예비비 | C20: 100,000 | D20: 100.0 | E20: 47.0
B21: 소계 | C21: =SUM(C20) -> 100,000 | D21: 100.0 | E21: 47.0
A22: 총계 | C22: =SUM(C8,C10,C14,C17,C19,C21) -> 212,788 | D22: 100.0 | E22: 100.0

Sheet 수익용기본재산 수입실적 조서
A1: 【서식 45】
A2: 수익용기본재산 수입예정 조서
A4: 가. 토지(대지, 임야, 전, 답) 및 건물
A5: (단위 : 원)
A6: 재산의종류 | B6: 면적(㎥) | C6: 평가액 | D6: 총수입액 | E6: 필요경비 | F6: 순수익액 | G6: 운영방법
A7: 건물 | B7: 269.63 | C7: 4,533,160,790 | D7: 87,780,000 | E7: 35,606,820 | F7: =SUM(D7-E7) -> 52,173,180 | G7: 평가액은 건물과 토지합계
A8: 토지 | B8: 8,654 | C8: 891,871,100 | D8: 9,300,000 | E8: 2,323,180 | F8: =SUM(D8-E8) -> 6,976,820
A11: 나. 현금 및 유가증권
A12: 재산의종류 | B12: 금액 | C12: 이율 또는 배당금 | D12: 총수입액 | E12: 필요경비 | F12: 순수익액 | G12: 비고
A13: 예금 | B13: 100,000,000 | C13: =SUM(D13/B13) -> 0.55% | D13: 552,373 | E13: 85,060 | F13: =SUM(D13-E13) -> 467,313
A15: 나. 수입액 집행내역
A16: (단위 : 원)
A17: 재산의 | B17: 순수익액 | C17: 집 행 내 역 | J17: 계
A18: 종 류 | C18: 법 정 | D18: 법 인 | E18: 교육시설부담금 | F18: 제 세 | G18: 감 가 | H18: 학교 | I18: 재투자비
C19: 부담금 | D19: 운영비 | F19: 공과금 | G19: 삼각비 | H19: 운영비
A20: 건물 | B20: =SUM(F7) -> 52,173,180 | C20: 52,173,180 | J20: =SUM(C20:I20) -> 52,173,180
A21: 토지 | B21: =SUM(F8) -> 6,976,820 | D21: 6,500,000 | F21: 476,820 | J21: =SUM(C21:I21) -> 6,976,820
A22: 현금 | B22: =SUM(F13) -> 467,313 | D22: 467,313 | J22: =SUM(C22:I22) -> 467,313
A23: 계 | B23: =SUM(B20:B22) -> 59,617,313 | C23: =SUM(C20:C22) -> 52,173,180 | D23: =SUM(D20:D22) -> 6,967,313 | E23: 0 | F23: 476,820 | G23: 0 | H23: 0 | I23: 0 | J23: 59,617,313
